bitfinex/quotes_BTCUSD_20250118
["timestamp","ask_amount","ask_price","bid_price","bid_amount"]
[1737216983102,0.34528381,104120.0,104110.0,0.00350542]
[1737216983280,0.19528381,104120.0,104110.0,0.00350542]
[1737216983525,0.19528381,104120.0,104110.0,0.09893382]
[1737216983526,0.35304381,104120.0,104110.0,0.09893382]
[1737216983729,0.10700081,104120.0,104110.0,0.11887002]
[1737216984143,0.10700081,104120.0,104110.0,0.09893382]
[1737216984358,0.480198,104130.0,104110.0,0.09893382]
[1737216984567,0.00776,104120.0,104110.0,0.0963589]
[1737216984979,0.103803,104120.0,104110.0,0.0009305]
[1737216985192,0.10700081,104120.0,104110.0,0.0963589]
[1737216985398,0.174316,104150.0,104120.0,0.2914684]
[1737216985607,0.09924081,104140.0,104120.0,0.2914704]
[1737216985817,0.00776,104150.0,104140.0,0.1954284]
[1737216986029,0.29903681,104150.0,104130.0,0.1954284]
[1737216986246,0.19526481,104140.0,104120.0,0.1954284]
[1737216986451,0.38731581,104140.0,104120.0,0.1954284]
[1737216986660,0.096043,104120.0,104110.0,0.1009305]
[1737216986869,0.0078,104120.0,104110.0,0.1963589]
[1737216987290,0.0078,104120.0,104110.0,0.0963589]
[1737216987489,0.103843,104120.0,104110.0,0.1963589]
[1737216987699,0.096043,104120.0,104110.0,0.0963589]
[1737216987908,0.0078,104120.0,104110.0,0.0963589]
[1737216988118,0.0078,104120.0,104110.0,0.1963589]
[1737216988322,0.35308381,104120.0,104110.0,0.0009305]
[1737216989385,0.096052,104110.0,104100.0,0.0004282]
[1737216989586,0.19529281,104110.0,104100.0,0.00047833]
[1737216990001,0.253848,104120.0,104100.0,0.19590673]
[1737216990209,0.253848,104120.0,104110.0,0.0954284]
[1737216990210,0.25704081,104120.0,104110.0,0.0954284]
[1737216990429,0.192051,104140.0,104110.0,0.2914794]
[1737216990647,0.38731881,104140.0,104120.0,0.1954284]
[1737216990859,0.09924081,104140.0,104130.0,0.0954284]
[1737216991071,0.20306481,104140.0,104130.0,0.0954284]
[1737216991720,0.35306481,104140.0,104120.0,0.1954284]
[1737216991934,0.199879,104130.0,104110.0,0.1954284]
[1737216992149,0.246043,104120.0,104110.0,0.0954284]
[1737216992354,0.63343281,104120.0,104100.0,0.19590673]
[1737216992563,0.53738181,104120.0,104100.0,0.19590673]
[1737216992774,0.53738181,104120.0,104100.0,0.22667885]
[1737216992775,0.34528981,104120.0,104100.0,0.22667885]
[1737216992979,0.34528981,104120.0,104100.0,0.19590673]
[1737216993182,0.53737681,104120.0,104100.0,0.19590673]
[1737216993815,0.0078,104110.0,104100.0,0.19590673]
[1737216994035,0.103852,104110.0,104100.0,0.19590673]
[1737216994241,0.103852,104110.0,104100.0,0.00047833]
[1737216994401,0.103852,104110.0,104100.0,0.09590673]
[1737216994606,0.103852,104110.0,104100.0,0.11707195]
[1737216995358,0.096052,104110.0,104100.0,0.09590673]
[1737216995565,0.103852,104110.0,104100.0,0.09590673]
[1737216996452,0.103852,104110.0,104100.0,0.00047833]
[1737216996661,0.20309281,104110.0,104100.0,0.00047833]
[1737216996869,0.38066441,104110.0,104100.0,0.00047833]
[1737216997089,0.527939,104110.0,104100.0,0.00047833]
[1737216997295,0.5233674,104110.0,104100.0,0.00047833]
[1737216997716,0.119061,104100.0,104090.0,0.0157455]
[1737216997925,0.22287341,104100.0,104090.0,0.01579573]
[1737216998138,0.23067341,104100.0,104090.0,0.01579573]
[1737216998579,0.38067341,104100.0,104090.0,0.01579573]
[1737216998993,0.37610181,104100.0,104090.0,0.01579573]
[1737216999207,0.37610181,104100.0,104080.0,0.00046]
[1737216999208,0.09607,104090.0,104080.0,0.00046]
[1737216999421,0.2176685,104090.0,104080.0,0.00051024]
[1737217000620,0.3676685,104090.0,104080.0,0.00051024]
[1737217000786,0.5424685,104090.0,104080.0,0.00051024]
[1737217001240,0.5424685,104090.0,104080.0,2.4e-07]
[1737217001449,0.60714309,104090.0,104080.0,2.4e-07]
[1737217002240,0.4350685,104090.0,104080.0,2.4e-07]
[1737217002460,0.2024685,104090.0,104080.0,2.4e-07]
[1737217002666,0.09924081,104090.0,104080.0,2.4e-07]
[1737217002870,0.20311081,104090.0,104080.0,2.4e-07]
[1737217003288,0.29821328,104110.0,104080.0,0.48366564]
[1737217003544,0.0078,104100.0,104090.0,0.2914964]
[1737217003745,0.1929967,104120.0,104090.0,0.2914964]
[1737217003746,0.0969477,104120.0,104100.0,0.1914864]
[1737217003957,0.19618851,104120.0,104100.0,0.1914854]
[1737217004170,0.10704081,104110.0,104080.0,0.3909118]
[1737217004384,0.09607,104090.0,104080.0,2.4e-07]
[1737217004595,0.11907,104090.0,104080.0,2.4e-07]
[1737217004814,0.24607,104090.0,104080.0,2.4e-07]
[1737217005245,0.45235162,104090.0,104080.0,2.4e-07]
[1737217005453,0.35311081,104090.0,104080.0,2.4e-07]
[1737217006937,0.38068241,104090.0,104080.0,2.4e-07]
[1737217007142,0.37611081,104090.0,104080.0,2.4e-07]
[1737217007554,0.45221081,104090.0,104080.0,2.4e-07]
[1737217007763,0.55145162,104090.0,104080.0,2.4e-07]
[1737217007973,0.55145162,104090.0,104080.0,0.00042914]
[1737217008352,0.55145162,104090.0,104060.0,0.0002]
[1737217008353,0.1006606,104070.0,104060.0,0.0002]
[1737217008593,0.1006606,104070.0,104060.0,0.00035078]
[1737217008594,0.19990141,104070.0,104060.0,0.00035078]
[1737217009269,0.34532981,104070.0,104060.0,0.00035078]
[1737217009475,0.34990141,104070.0,104060.0,0.00035078]
[1737217009902,0.19990141,104070.0,104060.0,0.00035078]
[1737217010104,0.19990141,104070.0,104020.0,0.30794941]
[1737217010105,0.1545716,104060.0,104020.0,0.30794941]
[1737217010355,0.288355,104040.0,104020.0,0.40458541]
[1737217010614,0.09924081,104040.0,104020.0,0.77191595]
[1737217010851,0.488794,104050.0,104030.0,0.0954284]
[1737217011141,0.096116,104040.0,104030.0,0.0954284]
[1737217011303,0.096126,104030.0,104020.0,0.20845241]
[1737217011507,0.57985981,104040.0,104020.0,0.20845241]
[1737217011713,0.096124,104040.0,104020.0,0.16525424]
[1737217011920,0.288368,104040.0,104020.0,0.16525424]
[1737217012130,0.19536681,104030.0,104020.0,0.000503]
[1737217012339,0.19536681,104030.0,104020.0,0.00350891]
[1737217013714,0.096126,104030.0,104020.0,0.000503]
[1737217013927,0.384451,104050.0,104020.0,0.4843264]
[1737217014135,0.00824,104030.0,104020.0,0.35974774]
[1737217015577,0.00824,104030.0,104020.0,0.2920664]
[1737217015988,0.00824,104030.0,104020.0,0.1959314]
[1737217016208,0.00824,104030.0,104020.0,0.2920664]
[1737217016432,0.00824,104030.0,104020.0,0.000503]
[1737217016656,0.20360681,104030.0,104020.0,0.000503]
[1737217016867,0.28164179,104030.0,104020.0,0.000503]
[1737217017083,0.28621339,104030.0,104020.0,0.000503]
[1737217017513,0.45464179,104030.0,104020.0,0.000503]
[1737217017738,1.27944179,104030.0,104020.0,0.000503]
[1737217018156,1.20140681,104030.0,104020.0,0.000503]
[1737217018369,0.246144,104010.0,104000.0,0.45922884]
[1737217018601,0.35883641,104010.0,104000.0,0.45927906]
[1737217019119,0.35426481,104010.0,104000.0,0.45927906]
[1737217019329,0.20426481,104010.0,104000.0,0.45927906]
[1737217019543,0.35426481,104010.0,104000.0,0.45927906]
[1737217020394,0.35883641,104010.0,104000.0,0.45927906]
[1737217020982,0.37726481,104010.0,104000.0,0.45927906]
[1737217021575,0.75326481,104010.0,104000.0,0.45927906]
[1737217021772,0.75326481,104010.0,104000.0,0.426908]
[1737217022019,1.45326481,104010.0,104000.0,0.426908]
[1737217022221,1.55250562,104010.0,104000.0,0.426908]
[1737217022428,1.55250562,104010.0,104000.0,0.31357984]
[1737217022650,1.55250562,104010.0,103980.0,0.0157455]
[1737217022651,0.546163,103990.0,103980.0,0.0157455]
[1737217022855,0.246172,103980.0,103970.0,0.0002]
[1737217023094,0.0962,103950.0,103940.0,0.03184238]
[1737217023338,0.20476081,103950.0,103940.0,0.03199334]
[1737217023538,0.35476081,103950.0,103940.0,0.03021096]
[1737217023741,0.39338448,103950.0,103940.0,0.03021096]
[1737217023912,0.35933241,103950.0,103940.0,0.03021096]
[1737217024128,0.41236478,103950.0,103940.0,0.03021096]
[1737217024327,0.37776081,103950.0,103940.0,0.03021096]
[1737217024572,0.99307781,103950.0,103940.0,0.03021096]
[1737217024775,0.1007896,103930.0,103920.0,0.0006]
[1737217024912,0.25305445,103930.0,103920.0,0.00074535]
[1737217025114,0.5010893,103930.0,103920.0,0.00074535]
[1737217025342,0.1008086,103910.0,103900.0,0.00178238]
[1737217025547,0.246255,103890.0,103880.0,0.10213397]
[1737217025755,0.35553581,103890.0,103880.0,0.10213397]
[1737217025953,0.39013145,103890.0,103880.0,0.10213397]
[1737217026152,0.43425245,103890.0,103880.0,0.10213397]
[1737217026416,0.39697976,103890.0,103880.0,0.10213397]
[1737217026568,0.39697976,103890.0,103880.0,0.0178041]
[1737217026569,0.22853581,103890.0,103880.0,0.0178041]
[1737217026759,0.19549581,103890.0,103880.0,0.0178041]
[1737217026999,0.09924081,103890.0,103880.0,0.21457159]
[1737217027197,0.09924081,103890.0,103880.0,0.15903945]
[1737217027425,0.096248,103900.0,103880.0,0.05903945]
[1737217027606,0.20604881,103900.0,103880.0,0.25530345]
[1737217027857,0.10980081,103900.0,103890.0,0.1]
[1737217028206,0.19548681,103900.0,103890.0,0.1]
[1737217028415,0.299289,103910.0,103890.0,0.1]
[1737217028583,0.096255,103890.0,103880.0,0.11373599]
[1737217028798,0.19549581,103890.0,103880.0,0.01830759]
[1737217029289,0.1963512,103890.0,103880.0,0.01830759]
[1737217029515,0.2344828,103890.0,103880.0,0.01830759]
[1737217029756,0.22306741,103890.0,103880.0,0.01830759]
[1737217029978,0.23362741,103890.0,103880.0,0.01830759]
[1737217030429,0.19549581,103890.0,103880.0,0.01830759]
[1737217030665,0.10980081,103890.0,103880.0,0.01830759]
[1737217030880,0.288757,103900.0,103890.0,0.096254]
[1737217030881,0.01056,103900.0,103890.0,0.096254]
[1737217031099,0.01141539,103900.0,103880.0,0.50252799]
[1737217031328,0.288735,103910.0,103880.0,0.57205539]
[1737217031329,0.299295,103910.0,103880.0,0.57205539]
[1737217031567,0.39853581,103910.0,103880.0,0.50252799]
[1737217031814,0.38797581,103910.0,103890.0,0.096255]
[1737217032051,0.39853581,103910.0,103890.0,0.096255]
[1737217032277,0.106793,103920.0,103890.0,0.51711556]
[1737217032486,0.28956939,103910.0,103890.0,0.32365]
[1737217032941,0.096246,103900.0,103890.0,0.1274]
[1737217033156,0.04944102,103910.0,103890.0,0.6115904]
[1737217033368,0.288671,103930.0,103900.0,0.388737]
[1737217033578,0.10980081,103920.0,103900.0,0.4841654]
[1737217033788,0.19547081,103920.0,103900.0,0.2916744]
[1737217034017,0.09924081,103920.0,103900.0,0.4841644]
[1737217034261,0.1963242,103920.0,103900.0,0.1954284]
[1737217034471,0.35218868,103920.0,103900.0,0.1]
[1737217034685,0.096246,103900.0,103890.0,0.1274]
[1737217034888,0.096246,103900.0,103890.0,0.2274]
[1737217035131,0.096246,103900.0,103890.0,0.1274]
[1737217035342,0.203047,103910.0,103890.0,0.1274]
[1737217035590,0.096246,103900.0,103890.0,0.1274]
[1737217035789,0.096246,103900.0,103890.0,0.2274]
[1737217036046,0.09710139,103900.0,103890.0,0.148]
[1737217036226,0.52150022,103910.0,103890.0,0.148]
[1737217036443,0.096246,103900.0,103890.0,0.148]
[1737217036902,0.096246,103900.0,103890.0,0.048]
[1737217037342,0.09710139,103900.0,103890.0,0.048]
[1737217037546,0.09710139,103900.0,103890.0,0.148]
[1737217037754,0.20603781,103910.0,103890.0,0.39477885]
[1737217037998,0.1106562,103910.0,103890.0,0.58728585]
[1737217038237,0.10980081,103910.0,103890.0,0.58628585]
[1737217038453,0.00085539,103900.0,103890.0,0.147]
[1737217038671,0.1963422,103900.0,103890.0,0.047]
[1737217038884,0.19548681,103900.0,103890.0,0.147]
[1737217039098,0.1963422,103900.0,103890.0,0.147]
[1737217039335,0.1963422,103900.0,103890.0,0.047]
[1737217039793,0.00085539,103900.0,103890.0,0.27899785]
[1737217040008,0.395521,103910.0,103890.0,0.147]
[1737217040225,0.395521,103910.0,103890.0,0.3386814]
[1737217040226,0.39851581,103910.0,103890.0,0.3386814]
[1737217040449,0.01056,103910.0,103890.0,0.4349374]
[1737217040695,0.01056,103910.0,103900.0,0.096246]
[1737217040901,0.299253,103920.0,103900.0,0.288737]
[1737217041113,0.39849381,103920.0,103890.0,0.6274344]
[1737217041333,0.19547281,103920.0,103900.0,0.4841604]
[1737217041542,0.01056,103920.0,103900.0,0.5803974]
[1737217041761,0.038501,103920.0,103910.0,0.096237]
[1737217041969,0.038501,103920.0,103910.0,0.2916654]
[1737217042185,0.096219,103930.0,103910.0,0.6766054]
[1737217042396,0.2348122,103930.0,103910.0,0.4841334]
[1737217042609,0.13557139,103930.0,103910.0,0.4841334]
[1737217042825,0.13557139,103930.0,103910.0,0.3878964]
[1737217042826,0.327153,103930.0,103910.0,0.3878964]
[1737217043045,0.096227,103920.0,103910.0,0.28090364]
[1737217043296,0.096237,103910.0,103900.0,0.1773284]
[1737217043513,0.096246,103900.0,103890.0,0.047]
[1737217043960,0.09566847,103900.0,103890.0,0.147]
[1737217044180,0.09566847,103900.0,103890.0,0.047]
[1737217044442,0.19576467,103900.0,103890.0,0.047]
[1737217044924,0.096255,103890.0,103880.0,0.01873709]
[1737217045136,0.19549581,103890.0,103880.0,0.01873709]
[1737217045362,0.34549581,103890.0,103880.0,0.01873709]
[1737217045588,1.14473662,103890.0,103880.0,0.01873709]
[1737217046321,1.16773662,103890.0,103880.0,0.01873709]
[1737217047330,1.46773662,103890.0,103880.0,0.01873709]
[1737217047820,1.04549581,103890.0,103880.0,0.01873709]
[1737217048069,1.05605581,103890.0,103880.0,0.01873709]
[1737217048312,0.90605581,103890.0,103880.0,0.01873709]
[1737217048556,0.7,103890.0,103880.0,0.21500109]
[1737217048791,0.7,103890.0,103880.0,0.39232949]
[1737217049047,0.01056,103900.0,103890.0,0.2916834]
[1737217049292,0.01056,103900.0,103890.0,0.2921132]
[1737217050061,0.01056,103900.0,103890.0,0.1966848]
[1737217050298,0.096246,103900.0,103890.0,0.1004298]
[1737217050533,0.19548681,103900.0,103890.0,0.1004298]
[1737217051270,0.38496,103910.0,103890.0,0.1004298]
[1737217051491,0.09713658,103920.0,103900.0,0.196245]
[1737217051737,0.09712958,103920.0,103910.0,0.1]
[1737217052239,0.096237,103910.0,103900.0,0.1476]
[1737217052485,0.34547781,103910.0,103900.0,0.0476]
[1737217052735,0.44887271,103910.0,103900.0,0.0476]
[1737217052971,0.44887271,103910.0,103890.0,0.0004298]
[1737217053211,0.19548681,103900.0,103890.0,0.0004298]
[1737217053928,0.28872,103910.0,103890.0,0.1958582]
[1737217054169,0.00090258,103920.0,103910.0,0.196237]
[1737217054442,0.00090258,103920.0,103910.0,0.48692784]
[1737217054976,0.00090258,103920.0,103910.0,0.73616865]
[1737217055249,0.14807314,103990.0,103960.0,0.29237]
[1737217055426,0.14807314,103990.0,103970.0,0.1]
[1737217055427,0.134652,103980.0,103970.0,0.1]
[1737217055662,0.38774481,103990.0,103970.0,0.1954284]
[1737217055879,0.42622181,103990.0,103970.0,0.32318377]
[1737217056086,0.42622181,103990.0,103970.0,0.22700677]
[1737217056502,0.23403379,103990.0,103970.0,0.32318677]
[1737217056704,0.42635979,103990.0,103970.0,0.32318677]
[1737217056886,0.42635979,103990.0,103970.0,0.32318777]
[1737217057098,0.42635979,103990.0,103970.0,0.22700677]
[1737217057314,0.03862698,103990.0,103970.0,0.22700677]
[1737217057517,0.00014998,103990.0,103980.0,0.2916004]
[1737217057724,0.00014998,103990.0,103980.0,0.26309084]
[1737217057983,0.00014998,103990.0,103980.0,0.35926284]
[1737217058468,0.00014998,103990.0,103980.0,0.40786284]
[1737217058733,0.00014998,103990.0,103980.0,0.50710365]
[1737217058961,0.00014998,103990.0,103980.0,0.31243444]
[1737217059189,0.00014998,103990.0,103980.0,0.3352004]
[1737217059432,0.09631298,103990.0,103980.0,0.0486]
[1737217059944,0.19555379,103990.0,103980.0,0.0486]
[1737217061373,0.00014998,103990.0,103980.0,0.144772]
[1737217061589,0.00014998,103990.0,103980.0,0.4142004]
[1737217061831,0.00014998,103990.0,103980.0,0.31509134]
[1737217062081,0.00014998,103990.0,103980.0,0.3352004]
[1737217062575,0.00105256,103990.0,103980.0,0.3352004]
[1737217062799,0.00105256,103990.0,103980.0,0.43444121]
[1737217063033,0.00105256,103990.0,103980.0,0.43344121]
[1737217065681,0.00105256,103990.0,103980.0,0.2342004]
[1737217065926,0.00105256,103990.0,103980.0,0.1476]
[1737217066216,0.19645637,103990.0,103980.0,0.0476]
[1737217066460,0.09619,103960.0,103950.0,0.74492342]
[1737217066700,0.10948081,103960.0,103950.0,0.64492342]
[1737217066914,0.20567081,103960.0,103950.0,0.64348342]
[1737217067125,0.19543081,103960.0,103950.0,0.0486]
[1737217067570,0.01024,103970.0,103950.0,0.0486]
[1737217067778,0.10948081,103970.0,103960.0,0.19619]
[1737217067977,0.10948081,103970.0,103960.0,0.1]
[1737217068194,0.19338356,103990.0,103960.0,0.1904284]
[1737217068419,0.19541381,103980.0,103960.0,0.4789854]
[1737217068636,0.09924081,103980.0,103970.0,0.096181]
[1737217068859,0.10745856,103990.0,103970.0,0.45567794]
[1737217069061,0.11053337,103990.0,103980.0,0.096172]
[1737217069270,0.11053337,103990.0,103970.0,0.73845334]
[1737217069698,0.11053337,103990.0,103970.0,0.54609134]
[1737217069909,0.01129256,103990.0,103970.0,0.6713064]
[1737217070143,0.20669937,103990.0,103970.0,0.2866024]
[1737217070363,0.38878537,103990.0,103970.0,0.2866024]
[1737217071029,0.10029337,103990.0,103980.0,0.096172]
[1737217071257,0.19645837,103990.0,103970.0,0.2866024]
[1737217071471,0.59411219,103990.0,103970.0,0.1904284]
[1737217071682,0.096172,103980.0,103970.0,0.1]
[1737217071890,0.29158481,103980.0,103960.0,0.1904284]
[1737217072100,0.38776181,103980.0,103960.0,0.4789994]
[1737217072346,0.38776181,103980.0,103960.0,0.6713804]
[1737217072559,0.00105256,103990.0,103980.0,0.1]
[1737217072770,0.09721556,103990.0,103980.0,0.1904284]
[1737217073188,0.00105256,103990.0,103980.0,0.2866004]
[1737217073392,0.09721556,103990.0,103980.0,0.1904284]
[1737217073614,0.09721556,103990.0,103970.0,0.1]
[1737217073615,0.096175,103980.0,103970.0,0.1]
[1737217073868,0.29158581,103980.0,103950.0,0.509475]
[1737217074088,0.59036081,103980.0,103950.0,0.770091]
[1737217074298,0.09619,103960.0,103950.0,0.0486]
[1737217074506,0.09924081,103960.0,103930.0,0.3153284]
[1737217074723,0.09924081,103960.0,103930.0,0.0488]
[1737217074724,0.096209,103940.0,103930.0,0.0488]
[1737217074958,0.096227,103920.0,103910.0,0.30340105]
[1737217075166,0.096227,103920.0,103910.0,0.21297265]
[1737217075376,0.01024,103930.0,103920.0,0.1]
[1737217075591,0.10948081,103930.0,103920.0,0.196227]
[1737217075797,0.01024,103930.0,103920.0,0.196227]
[1737217076006,0.01024,103930.0,103920.0,0.1]
[1737217076216,0.01038985,103930.0,103920.0,0.196227]
[1737217076444,0.00014985,103930.0,103920.0,0.37305964]
[1737217077551,0.00014985,103930.0,103920.0,0.59720045]
[1737217077765,0.00014985,103930.0,103920.0,0.79720045]
[1737217078603,0.00014985,103930.0,103920.0,0.3115554]
[1737217078834,0.00014985,103930.0,103920.0,0.4115554]
[1737217080536,0.00085539,103940.0,103930.0,0.2866464]
[1737217080746,0.24924081,103940.0,103920.0,0.0904284]
[1737217080954,0.288692,103920.0,103910.0,0.0904284]
[1737217081129,0.38793281,103920.0,103910.0,0.00050349]
[1737217081388,0.39817281,103920.0,103910.0,0.00050349]
[1737217082222,0.29817281,103920.0,103910.0,0.00050349]
[1737217082439,0.39440481,103920.0,103910.0,0.00050349]
[1737217082874,0.54440481,103920.0,103910.0,0.00050349]
[1737217083086,0.55397641,103920.0,103910.0,0.00050349]
[1737217083304,0.54440481,103920.0,103910.0,0.00050349]
[1737217083513,0.55397641,103920.0,103910.0,0.00050349]
[1737217083719,0.54440481,103920.0,103910.0,0.00050349]
[1737217083971,0.096246,103900.0,103890.0,0.1492298]
[1737217084188,0.096229,103920.0,103910.0,0.0904284]
[1737217084423,0.288687,103920.0,103900.0,0.4791484]
[1737217084658,0.096237,103910.0,103890.0,0.61008863]
[1737217084907,0.096246,103900.0,103890.0,0.14937965]
[1737217085148,0.09924081,103900.0,103890.0,0.18279382]
[1737217085436,0.19548681,103900.0,103890.0,0.18279382]
[1737217085679,0.19548681,103900.0,103890.0,0.04937965]
[1737217085896,0.19548681,103900.0,103890.0,0.00057965]
[1737217086756,0.19548681,103900.0,103890.0,0.10057965]
[1737217086968,0.09924081,103900.0,103890.0,0.10057965]
[1737217087182,0.58454137,103920.0,103900.0,0.0904284]
[1737217087388,0.096237,103910.0,103900.0,0.0904284]
[1737217087589,0.68378218,103920.0,103900.0,0.0904284]
[1737217087808,0.096242,103910.0,103900.0,0.0904284]
[1737217088016,0.49131618,103920.0,103900.0,0.1866714]
[1737217088017,0.78001818,103920.0,103900.0,0.1866714]
[1737217088236,0.13865018,103920.0,103900.0,0.23024034]
[1737217088452,0.42733518,103920.0,103900.0,0.5279484]
[1737217088665,0.096237,103910.0,103900.0,0.2392284]
[1737217088880,0.096237,103910.0,103900.0,0.0488]
[1737217088881,0.1963332,103910.0,103900.0,0.0488]
[1737217089095,0.096246,103900.0,103890.0,0.00057965]
[1737217089323,0.19548681,103900.0,103890.0,0.00057965]
[1737217090397,0.1963422,103900.0,103890.0,0.00057965]
[1737217090807,0.19548681,103900.0,103890.0,0.00057965]
[1737217091015,0.2065422,103900.0,103890.0,0.00057965]
[1737217091907,0.0102,103900.0,103890.0,0.00057965]
[1737217092141,0.096237,103910.0,103900.0,0.0904284]
[1737217092644,0.03940937,103920.0,103910.0,0.096237]
[1737217092879,0.23487718,103920.0,103900.0,0.71960451]
[1737217093165,0.03940937,103920.0,103910.0,0.4115654]
[1737217093640,0.00090237,103920.0,103910.0,0.4115654]
[1737217093842,0.00090237,103920.0,103910.0,0.51080621]
[1737217094088,0.00090237,103920.0,103910.0,0.56207191]
[1737217094340,0.00090237,103920.0,103910.0,0.4628311]
[1737217095034,0.00090237,103920.0,103910.0,0.3628311]
[1737217095285,0.00090237,103920.0,103910.0,0.4115654]
[1737217096730,0.00090237,103920.0,103910.0,0.3153284]
[1737217096965,0.00090237,103920.0,103910.0,0.4115654]
[1737217097208,0.09712937,103920.0,103910.0,0.1488]
[1737217097430,0.09712937,103920.0,103910.0,0.2392284]
[1737217098529,0.09712937,103920.0,103910.0,0.1396581]
[1737217098735,0.09712937,103920.0,103910.0,0.2396581]
[1737217099137,0.09798476,103920.0,103910.0,0.0492297]
[1737217099336,0.09798476,103920.0,103910.0,0.0004297]
[1737217099539,0.28400325,103920.0,103910.0,0.0004297]
[1737217099740,0.28314786,103920.0,103910.0,0.0004297]
[1737217099940,0.19637018,103920.0,103910.0,0.0004297]
[1737217100119,0.19722557,103920.0,103910.0,0.0004297]
[1737217100611,0.34722557,103920.0,103910.0,0.0004297]
[1737217100770,0.35594178,103920.0,103910.0,0.0004297]
[1737217100970,0.45518259,103920.0,103910.0,0.0004297]
[1737217101374,0.44561099,103920.0,103910.0,0.0004297]
[1737217102846,0.34637018,103920.0,103910.0,0.0004297]
[1737217102989,0.35594178,103920.0,103910.0,0.0004297]
[1737217103388,0.34637018,103920.0,103910.0,0.0004297]
[1737217103836,0.35594178,103920.0,103910.0,0.0004297]
[1737217104319,0.25971478,103920.0,103890.0,0.00057965]
[1737217104522,0.096246,103900.0,103890.0,0.09100805]
[1737217104723,0.096246,103900.0,103890.0,0.12155852]
[1737217104927,0.096246,103900.0,103890.0,0.00057965]
[1737217105136,0.096246,103900.0,103890.0,0.09100805]
[1737217105572,0.096246,103900.0,103890.0,0.19100805]
[1737217105743,0.49440881,103910.0,103890.0,0.19100805]
[1737217105945,0.096246,103900.0,103890.0,0.19100805]
[1737217106097,0.096246,103900.0,103890.0,0.26006152]
[1737217106300,0.096246,103900.0,103890.0,0.19100805]
[1737217106874,0.09710139,103900.0,103890.0,0.10057965]
[1737217107046,0.1963422,103900.0,103890.0,0.00057965]
[1737217107259,0.1963422,103900.0,103890.0,0.10057965]
[1737217107455,0.19548681,103900.0,103890.0,0.10057965]
[1737217107661,0.491412,103910.0,103890.0,0.30818722]
[1737217107824,0.491412,103910.0,103890.0,0.10057965]
[1737217107825,0.1963422,103900.0,103890.0,0.10057965]
[1737217108065,0.1963422,103900.0,103890.0,0.00057965]
[1737217108541,0.19548681,103900.0,103890.0,0.09100805]
[1737217108732,0.1963422,103900.0,103890.0,0.09100805]
[1737217109138,0.19548681,103900.0,103890.0,0.09100805]
[1737217109867,0.1963422,103900.0,103890.0,0.09100805]
[1737217110067,0.19548681,103900.0,103890.0,0.09100805]
[1737217110268,0.587658,103910.0,103890.0,0.09100805]
[1737217110269,0.298928,103910.0,103890.0,0.21781362]
[1737217110474,0.298928,103910.0,103900.0,0.0904284]
[1737217110721,0.288728,103910.0,103900.0,0.1403284]
[1737217111448,0.288728,103910.0,103900.0,0.0499]
[1737217111698,0.096246,103900.0,103890.0,0.00057965]
[1737217111839,0.1963422,103900.0,103890.0,0.10057965]
[1737217112056,0.1963422,103900.0,103890.0,0.00057965]
[1737217112906,0.096246,103900.0,103890.0,0.19100805]
[1737217113310,0.096246,103900.0,103890.0,0.24580132]
[1737217113689,0.096246,103900.0,103890.0,0.19100805]
[1737217113897,0.096246,103900.0,103890.0,0.00057965]
[1737217114095,0.1963422,103900.0,103890.0,0.00057965]
[1737217115814,0.3463422,103900.0,103890.0,0.00057965]
[1737217115946,0.34548681,103900.0,103890.0,0.00057965]
[1737217116144,0.45429922,103900.0,103890.0,0.00057965]
[1737217120215,0.3647845,103900.0,103890.0,0.00057965]
[1737217120421,0.3747445,103900.0,103890.0,0.00057965]
[1737217120628,0.6881729,103900.0,103890.0,6.5e-07]
[1737217120831,0.1058266,103890.0,103880.0,0.0182336]
[1737217121048,0.20506741,103890.0,103880.0,0.0182336]
[1737217121194,0.30430822,103890.0,103880.0,0.0182336]
[1737217121392,0.19549581,103890.0,103880.0,0.0182336]
[1737217121640,0.20545581,103890.0,103880.0,0.0182336]
[1737217121841,0.20506741,103890.0,103880.0,0.0182336]
[1737217122017,0.20545581,103890.0,103880.0,0.0182336]
[1737217123059,0.21502741,103890.0,103880.0,0.0182336]
[1737217123290,0.31426822,103890.0,103880.0,0.0182336]
[1737217124390,0.19549581,103890.0,103880.0,0.0182336]
[1737217124590,0.20545581,103890.0,103880.0,0.0182336]
[1737217124998,0.19549581,103890.0,103880.0,0.1182336]
[1737217125177,0.096255,103890.0,103880.0,0.208662]
[1737217125377,0.096255,103890.0,103880.0,0.304926]
[1737217125578,0.096255,103890.0,103880.0,0.208662]
[1737217126013,0.096255,103890.0,103880.0,0.108662]
[1737217126257,0.28312001,103890.0,103880.0,0.0182336]
[1737217126467,0.43312001,103890.0,103880.0,0.0182336]
[1737217126902,0.44269161,103890.0,103880.0,0.0182336]
[1737217127993,0.34549581,103890.0,103880.0,0.0182336]
[1737217128666,0.35506741,103890.0,103880.0,0.0182336]
[1737217129332,0.34549581,103890.0,103880.0,0.0182336]
[1737217129791,0.20545581,103890.0,103880.0,0.0182336]
[1737217130223,0.20545581,103890.0,103880.0,0.108662]
[1737217130224,0.35545581,103890.0,103880.0,0.108662]
[1737217130437,0.35545581,103890.0,103880.0,0.0182336]
[1737217130676,0.45469662,103890.0,103880.0,0.0182336]
[1737217131037,0.35545581,103890.0,103880.0,0.0182336]
[1737217132398,0.36502741,103890.0,103880.0,0.0182336]
[1737217132985,0.35545581,103890.0,103880.0,0.0182336]
[1737217133912,0.36502741,103890.0,103880.0,0.0182336]
[1737217134146,0.83679662,103890.0,103880.0,0.0182336]
[1737217134371,0.85979662,103890.0,103880.0,0.0182336]
[1737217134616,0.55979662,103890.0,103880.0,0.0182336]
[1737217134888,0.85979662,103890.0,103880.0,0.0182336]
[1737217135129,1.45384553,103890.0,103880.0,0.0182336]
[1737217135366,0.269264,103880.0,103870.0,0.0002]
[1737217135612,0.46774562,103880.0,103870.0,0.00035108]
[1737217136555,0.61345662,103880.0,103870.0,0.00035108]
[1737217136780,0.46774562,103880.0,103870.0,0.00035108]
[1737217137459,1.02157662,103880.0,103870.0,8e-08]
[1737217137703,0.57244562,103880.0,103870.0,8e-08]
[1737217137938,0.6018894,103880.0,103870.0,8e-08]
[1737217138150,0.57244562,103880.0,103870.0,8e-08]
[1737217138856,0.95433421,103880.0,103870.0,8e-08]
[1737217139064,0.95433421,103880.0,103820.0,1e-07]
[1737217139065,0.569311,103830.0,103820.0,1e-07]
[1737217139284,0.569311,103830.0,103800.0,0.0008883]
[1737217139285,0.1595716,103810.0,103800.0,0.0006392]
[1737217139495,0.38259506,103810.0,103800.0,0.0006392]
[1737217139712,0.38259506,103810.0,103800.0,0.00068955]
[1737217139936,0.35514141,103810.0,103800.0,0.00068955]
[1737217140139,0.36510141,103810.0,103800.0,0.00068955]